fUSD/lending_fUSD_20250221
["ID","MTS","AMOUNT","RATE_DAILY","PERIOD"]
[353972376,1740171037553,-997.55,0.0001104,2]
[353972377,1740171037562,-500.0,0.0001104,2]
[353972378,1740171037571,-500.0,0.0001104,2]
[353972379,1740171037580,-693.28,0.0001104,2]
[353972380,1740171037590,-500.0,0.0001104,2]
[353972381,1740171037599,-500.0,0.0001104,2]
[353972382,1740171037608,-500.0,0.0001104,2]
[353972383,1740171037617,-703.51,0.0001104,2]
[353972384,1740171037627,-500.0,0.0001104,2]
[353972385,1740171037636,-500.0,0.0001104,2]
[353972386,1740171037644,-500.0,0.0001104,2]
[353972387,1740171037654,-571.44,0.0001104,2]
[353972388,1740171037662,-500.0,0.0001104,2]
[353972389,1740171037671,-500.0,0.0001104,2]
[353972390,1740171037680,-483.57423837,0.0001104,2]
[353972391,1740171037690,-500.0,0.0001104,2]
[353972392,1740171037700,-506.45480225,0.0001104,2]
[353972393,1740171037709,-500.68209603,0.0001104,2]
[353972394,1740171037719,-500.0,0.0001104,2]
[353972395,1740171037728,-500.0,0.0001104,2]
[353972396,1740171037737,-500.0,0.0001104,2]
[353972397,1740171037747,-500.0,0.0001104,2]
[353972398,1740171037758,-500.0,0.0001104,2]
[353972401,1740171037767,-500.0,0.0001104,2]
[353972403,1740171037776,-500.0,0.0001104,2]
[353972404,1740171037785,-500.0,0.00011041,2]
[353972405,1740171037794,-500.0,0.00011041,2]
[353972406,1740171037803,-500.0,0.00011041,2]
[353972407,1740171037812,-500.0,0.00011041,2]
[353972408,1740171037821,-948.42,0.00011041,2]
[353972409,1740171037830,-500.0,0.00011041,2]
[353972410,1740171037839,-500.0,0.00011041,2]
[353972411,1740171037848,-500.0,0.00011041,2]
[353972412,1740171037857,-548.39,0.00011041,2]
[353972414,1740171037866,-500.0,0.00011041,2]
[353972416,1740171037875,-220.05,0.00011041,2]
[353972418,1740171037884,-500.0,0.00011041,2]
[353972420,1740171037893,-500.0,0.00011041,2]
[353972422,1740171037902,-500.0,0.00011041,2]
[353972424,1740171037911,-500.0,0.00011041,2]
[353972426,1740171037920,-500.0,0.00011041,2]
[353972428,1740171037930,-500.0,0.00011041,2]
[353972430,1740171037939,-500.0,0.00011041,2]
[353972432,1740171037948,-500.0,0.00011041,2]
[353972434,1740171037957,-500.0,0.00011041,2]
[353972435,1740171037966,-500.0,0.00011041,2]
[353972436,1740171037977,-500.0,0.00011041,2]
[353972437,1740171037986,-500.0,0.00011041,2]
[353972438,1740171037996,-500.0,0.00011041,2]
[353972439,1740171038007,-500.0,0.00011041,2]
[353972440,1740171038016,-500.0,0.00011041,2]
[353972441,1740171038025,-500.0,0.00011041,2]
[353972442,1740171038035,-500.0,0.00011041,2]
[353972443,1740171038046,-500.0,0.00011041,2]
[353972444,1740171038055,-509.14,0.00011041,2]
[353972445,1740171038064,-500.0,0.00011041,2]
[353972446,1740171038073,-500.0,0.00011041,2]
[353972447,1740171038083,-532.03,0.00011041,2]
[353972448,1740171038093,-500.0,0.00011041,2]
[353972449,1740171038102,-500.0,0.00011041,2]
[353972450,1740171038111,-500.0,0.00011041,2]
[353972451,1740171038120,-408.99773993,0.00011041,2]
[353972452,1740171038140,-486.54226007,0.00011041,2]
[353972453,1740171038149,-413.45773993,0.00011041,2]
[353972454,1740171038160,-86.54226007,0.00011041,2]
[353972455,1740171038170,-500.0,0.00011041,2]
[353972456,1740171038179,-207.41869279,0.00011041,2]
[353972457,1740171038188,-376.2967788,0.00011041,2]
[353972458,1740171038199,-347.5632212,0.00011041,2]
[353972459,1740171038208,-500.0,0.00011041,2]
[353972460,1740171038218,-500.0,0.00011041,2]
[353972462,1740171038227,-569.43,0.00011041,2]
[353972465,1740171038240,-400.01140355,0.00011041,2]
[353972467,1740171038252,-321.88859645,0.00011041,2]
[353972469,1740171038261,-604.3,0.00011041,2]
[353972471,1740171038270,-500.0,0.00011041,2]
[353972473,1740171038279,-796.7,0.00011041,2]
[353972475,1740171038288,-500.0,0.00011041,2]
[353972477,1740171038297,-548.12,0.00011041,2]
[353972479,1740171038306,-682.11,0.00011041,2]
[353972481,1740171038315,-500.0,0.00011041,2]
[353972483,1740171038324,-500.0,0.00011041,2]
[353972485,1740171038333,-500.0,0.00011041,2]
[353972487,1740171038342,-28.68885675,0.00011041,2]
[353972489,1740171038354,-471.31114325,0.00011041,2]
[353972491,1740171038363,-243.77888977,0.00011041,2]
[353972493,1740171038374,-364.85111023,0.00011041,2]
[353972495,1740171038383,-360.56114557,0.00011041,2]
[353972498,1740171038394,-139.43885443,0.00011041,2]
[353972500,1740171038403,-146.80720634,0.00011041,2]
[353972503,1740171038421,-381.91279366,0.00011041,2]
[353972504,1740171038431,-113.94262331,0.00011041,2]
[353972508,1740171038457,-386.05737669,0.00011041,2]
[353972510,1740171038466,-500.0,0.00011041,2]
[353972512,1740171038476,-500.0,0.00011041,2]
[353972514,1740171038485,-500.0,0.00011041,2]
[353972516,1740171038494,-500.0,0.00011041,2]
[353972519,1740171038503,-608.08,0.00011041,2]
[353972521,1740171038512,-500.0,0.00011041,2]
[353972522,1740171038522,-500.0,0.00011041,2]
[353972524,1740171038531,-500.0,0.00011041,2]
[353972526,1740171038539,-500.0,0.00011041,2]
[353972528,1740171038548,-500.0,0.00011041,2]
[353972530,1740171038557,-152.45222309,0.00011041,2]
[353972533,1740171038570,-347.54777691,0.00011041,2]
[353972535,1740171038579,-500.0,0.00011041,2]
[353972537,1740171038589,-500.0,0.00011041,2]
[353972539,1740171038598,-595.1,0.00011041,2]
[353972541,1740171038607,-500.0,0.00011041,2]
[353972543,1740171038616,-500.0,0.00011041,2]
[353972545,1740171038625,-597.25,0.00011041,2]
[353972547,1740171038634,-500.0,0.00011041,2]
[353972549,1740171038644,-789.82,0.00011041,2]
[353972551,1740171038653,-500.0,0.00011041,2]
[353972553,1740171038663,-500.0,0.00011041,2]
[353972555,1740171038672,-500.0,0.00011041,2]
[353972557,1740171038682,-534.75,0.00011041,2]
[353972559,1740171038691,-594.45,0.00011041,2]
[353972561,1740171038701,-500.0,0.00011041,2]
[353972563,1740171038709,-500.0,0.00011041,2]
[353972565,1740171038719,-500.0,0.00011041,2]
[353972567,1740171038727,-656.67,0.00011041,2]
[353972569,1740171038737,-500.0,0.00011041,2]
[353972571,1740171038746,-510.74,0.00011041,2]
[353972573,1740171038755,-500.0,0.00011041,2]
[353972575,1740171038765,-500.0,0.00011041,2]
[353972577,1740171038775,-576.65,0.00011041,2]
[353972579,1740171038784,-717.99,0.00011041,2]
[353972581,1740171038793,-758.02,0.00011041,2]
[353972583,1740171038803,-500.0,0.00011041,2]
[353972585,1740171038812,-500.0,0.00011041,2]
[353972587,1740171038822,-500.0,0.00011041,2]
[353972589,1740171038832,-500.0,0.00011041,2]
[353972592,1740171038841,-500.0,0.00011041,2]
[353972593,1740171038850,-628.36,0.00011041,2]
[353972595,1740171038860,-500.0,0.00011041,2]
[353972597,1740171038869,-500.0,0.00011041,2]
[353972600,1740171038878,-500.0,0.00011041,2]
[353972602,1740171038888,-549.57,0.00011041,2]
[353972604,1740171038897,-594.93,0.00011041,2]
[353972606,1740171038906,-510.35,0.00011041,2]
[353972607,1740171038915,-500.0,0.00011041,2]
[353972610,1740171038925,-500.0,0.00011041,2]
[353972611,1740171038934,-500.0,0.00011041,2]
[353972613,1740171038943,-529.44,0.00011041,2]
[353972616,1740171038953,-514.03,0.00011041,2]
[353972618,1740171038962,-925.13,0.00011041,2]
[353972620,1740171038974,-500.0,0.00011041,2]
[353972622,1740171038984,-643.85,0.00011041,2]
[353972623,1740171038994,-500.0,0.00011041,2]
[353972626,1740171039008,-728.91,0.00011041,2]
[353972628,1740171039017,-500.0,0.00011041,2]
[353972630,1740171039026,-500.0,0.00011041,2]
[353972632,1740171039035,-500.0,0.00011041,2]
[353972634,1740171039046,-791.3,0.00011041,2]
[353972636,1740171039055,-632.04,0.00011041,2]
[353972637,1740171039064,-818.59,0.00011041,2]
[353972646,1740171039139,-500.0,0.00011041,2]
[353972648,1740171039148,-592.44,0.00011041,2]
[353972650,1740171039157,-500.0,0.00011041,2]
[353972652,1740171039168,-500.0,0.00011041,2]
[353972655,1740171039177,-838.19,0.00011041,2]
[353972657,1740171039187,-720.06,0.00011041,2]
[353972658,1740171039196,-931.04,0.00011041,2]
[353972661,1740171039206,-3521.62341459,0.00011099,2]
[353972663,1740171039215,-1189.40530248,0.00011099,2]
[353972665,1740171039226,-632.53,0.0001112,2]
[353972667,1740171039236,-838.98,0.0001112,2]
[353972669,1740171039245,-500.0,0.0001112,2]
[353972671,1740171039254,-500.0,0.0001112,2]
[353972673,1740171039264,-649.17,0.0001112,2]
[353972675,1740171039273,-609.92,0.0001112,2]
[353972677,1740171039282,-500.0,0.0001112,2]
[353972679,1740171039291,-734.31,0.0001112,2]
[353972681,1740171039301,-903.74,0.0001112,2]
[353972683,1740171039309,-500.0,0.0001112,2]
[353972685,1740171039318,-500.0,0.0001112,2]
[353972687,1740171039327,-774.49,0.0001112,2]
[353972689,1740171039336,-557.01,0.0001112,2]
[353972691,1740171039345,-601.4,0.0001112,2]
[353972693,1740171039353,-500.0,0.0001112,2]
[353972695,1740171039363,-584.44,0.0001112,2]
[353972697,1740171039372,-739.21,0.0001112,2]
[353972698,1740171039381,-1290.21,0.0001112,2]
[353972700,1740171039391,-500.0,0.0001112,2]
[353972702,1740171039400,-500.0,0.0001112,2]
[353972704,1740171039409,-911.81,0.0001112,2]
[353972706,1740171039418,-500.0,0.0001112,2]
[353972708,1740171039426,-500.0,0.0001112,2]
[353972710,1740171039438,-621.72518307,0.0001112,2]
[353972712,1740171039447,-721.51,0.0001112,2]
[353972714,1740171039456,-500.0,0.0001112,2]
[353972716,1740171039465,-1006.19,0.0001112,2]
[353972718,1740171039476,-567.1,0.0001112,2]
[353972720,1740171039485,-1021.87,0.0001112,2]
[353972722,1740171039494,-641.22,0.0001112,2]
[353972724,1740171039503,-500.0,0.0001112,2]
[353972726,1740171039511,-500.0,0.00011121,2]
[353972727,1740171039520,-564.49,0.00011121,2]
[353972729,1740171039529,-500.0,0.00011121,2]
[353972730,1740171039538,-500.0,0.00011121,2]
[353972731,1740171039547,-500.0,0.00011121,2]
[353972732,1740171039556,-515.4,0.00011121,2]
[353972733,1740171039565,-545.11,0.00011121,2]
[353972734,1740171039575,-500.0,0.00011121,2]
[353972735,1740171039584,-500.0,0.00011121,2]
[353972736,1740171039593,-500.0,0.00011121,2]
[353972737,1740171039603,-500.0,0.00011121,2]
[353972738,1740171039612,-500.0,0.00011121,2]
[353972740,1740171039621,-534.84,0.00011121,2]
[353972742,1740171039630,-500.0,0.00011121,2]
[353972744,1740171039640,-500.0,0.00011121,2]
[353972746,1740171039649,-505.86641007,0.00011121,2]
[353972748,1740171039659,-203.91596151,0.00011121,2]
[353972750,1740171039668,-500.0,0.00011121,2]
[353972752,1740171039678,-500.0,0.00011121,2]
[353972754,1740171039687,-288.08766469,0.00011121,2]
[353972758,1740171039710,-211.91233531,0.00011121,2]
[353972760,1740171039721,-500.0,0.00011121,2]
[353972762,1740171039731,-500.0,0.00011121,2]
[353972763,1740171039741,-500.0,0.00011121,2]
[353972765,1740171039750,-920.86,0.00011121,2]
[353972767,1740171039759,-529.7,0.00011121,2]
[353972769,1740171039769,-500.0,0.00011121,2]
[353972772,1740171039780,-1213.59,0.00011121,2]
[353972774,1740171039790,-1002.64037992,0.00011121,2]
[353972776,1740171039801,-631.98962008,0.00011121,2]
[353972778,1740171039811,-500.0,0.00011121,2]
[353972780,1740171039821,-1530.25,0.00011121,2]
[353972782,1740171039829,-507.7,0.00011121,2]
[353972784,1740171039839,-1165.42,0.00011121,2]
[353972786,1740171039848,-1606.86,0.00011121,2]
[353972788,1740171039857,-500.0,0.00011121,2]
[353972790,1740171039866,-500.0,0.00011121,2]
[353972793,1740171039876,-1202.17,0.00011121,2]
[353972795,1740171039886,-500.0,0.00011121,2]
[353972797,1740171039895,-980.68,0.00011121,2]
[353972799,1740171039905,-388.485905,0.00011121,2]
[353972801,1740171039914,-500.0,0.00011121,2]
[353972803,1740171039924,-787.96,0.00011121,2]
[353972805,1740171039933,-715.35,0.00011121,2]
[353972807,1740171039943,-500.0,0.00011121,2]
[353972809,1740171039953,-473.44728948,0.00011121,2]
[353972811,1740171039962,-4732.39,0.00011121,2]
[353972813,1740171039974,-505.41021584,0.00011121,2]
[353972815,1740171039984,-825.04,0.00011121,2]
[353972817,1740171039994,-500.0,0.00011121,2]
[353972819,1740171040003,-781.86,0.00011121,2]
[353972821,1740171040016,-456.75589,0.00011121,2]
[353972823,1740171040026,-1296.25,0.00011121,2]
[353972825,1740171040036,-500.0,0.00011121,2]
[353972827,1740171040046,-968.39,0.00011121,2]
[353972829,1740171040055,-500.0,0.00011121,2]
[353972831,1740171040065,-1024.15,0.00011121,2]
[353972833,1740171040073,-500.0,0.00011121,2]
[353972835,1740171040083,-500.0,0.00011121,2]
[353972837,1740171040092,-641.54,0.00011121,2]
[353972838,1740171040101,-983.5,0.00011121,2]
[353972839,1740171040110,-922.66,0.00011121,2]
[353972840,1740171040119,-521.8,0.00011121,2]
[353972841,1740171040128,-1051.72,0.00011121,2]
[353972842,1740171040138,-500.0,0.00011121,2]
[353972843,1740171040146,-960.42,0.00011121,2]
[353972844,1740171040155,-909.2,0.00011121,2]
[353972845,1740171040165,-282.6003076,0.00011121,2]
[353972846,1740171040174,-699.01,0.00011121,2]
[353972847,1740171040183,-1134.55,0.00011121,2]
[353972848,1740171040192,-2042.37,0.00011121,2]
[353972849,1740171040201,-770.62,0.00011121,2]
[353972850,1740171040210,-500.0,0.00011121,2]
[353972851,1740171040222,-500.0,0.00011121,2]
[353972852,1740171040231,-833.6,0.00011121,2]
[353972853,1740171040240,-500.0,0.00011121,2]
[353972854,1740171040249,-691.53,0.00011121,2]
[353972855,1740171040259,-500.0,0.00011121,2]
[353972856,1740171040268,-1037.34,0.00011121,2]
[353972857,1740171040277,-500.0,0.00011121,2]
[353972858,1740171040286,-500.0,0.00011121,2]
[353972859,1740171040295,-698.57,0.00011121,2]
[353972860,1740171040305,-1368.34,0.00011121,2]
[353972861,1740171040314,-500.0,0.00011121,2]
[353972862,1740171040323,-468.29234727,0.00011121,2]
[353972863,1740171040333,-697.57,0.00011121,2]
[353972864,1740171040342,-500.0,0.00011121,2]
[353972865,1740171040351,-1063.71,0.00011121,2]
[353972866,1740171040361,-500.0,0.00011121,2]
[353972867,1740171040370,-1210.76,0.00011121,2]
[353972868,1740171040379,-916.99,0.00011121,2]
[353972869,1740171040389,-500.0,0.00011121,2]
[353972870,1740171040398,-737.32,0.00011121,2]
[353972871,1740171040408,-500.0,0.00011121,2]
[353972872,1740171040417,-76.54137546,0.00011121,2]
[353973015,1740171041834,-1272.71,0.00010958,2]
[353973017,1740171041844,-500.0,0.00011038,2]
[353973019,1740171041854,-70.40565676,0.00011038,2]
[353973020,1740171041866,-429.59434324,0.00011038,2]
[353973021,1740171041875,-418.44082448,0.00011038,2]
[353973022,1740171041886,-81.55917552,0.00011038,2]
[353973023,1740171041896,-500.0,0.00011039,2]
[353973024,1740171041905,-504.75484078,0.00011039,2]
[353973025,1740171041914,-500.0,0.00011039,2]
[353973026,1740171041923,-500.0,0.0001104,2]
[353973027,1740171041932,-1272.71,0.00011041,2]
[353973028,1740171041942,-500.0,0.0001112,2]
[353973030,1740171041951,-500.0,0.0001112,2]
[353973032,1740171041961,-1038.42862454,0.00011121,2]
[353973034,1740171041970,-500.0,0.00011121,2]
[353973036,1740171041981,-425.99890972,0.00011121,2]
[353973038,1740171041991,-841.42,0.00011121,2]
[353973040,1740171042001,-500.0,0.00011121,2]
[353973041,1740171042011,-2085.19,0.00011121,2]
[353973044,1740171042021,-315.39179164,0.00011121,2]
[353973046,1740171042030,-500.0,0.00011121,2]
[353973047,1740171042040,-500.0,0.00011121,2]
[353973050,1740171042050,-1025.17,0.00011121,2]
[353973051,1740171042059,-181.7766578,0.00011121,2]
[353973054,1740171042071,-318.2233422,0.00011121,2]
[353973056,1740171042080,-500.0,0.00011121,2]
[353973058,1740171042091,-1253.06,0.00011121,2]
[353973060,1740171042100,-500.0,0.00011121,2]
[353973062,1740171042109,-725.46,0.00011121,2]
[353973063,1740171042118,-828.59,0.00011121,2]
[353973066,1740171042127,-1071.25,0.00011121,2]
[353973067,1740171042137,-663.69,0.00011121,2]
[353973069,1740171042146,-1377.64,0.00011121,2]
[353973071,1740171042155,-500.0,0.00011121,2]
[353973073,1740171042164,-500.0,0.00011121,2]
[353973075,1740171042172,-224.92902785,0.00011121,2]
[353973078,1740171042184,-275.07097215,0.00011121,2]
[353973080,1740171042194,-540.68,0.00011121,2]
[353973082,1740171042203,-500.0,0.00011121,2]
[353973084,1740171042212,-500.0,0.00011121,2]
[353973086,1740171042222,-500.0,0.00011122,2]
[353973088,1740171042232,-500.0,0.00011122,2]
[353973090,1740171042241,-500.0,0.00011123,2]
[353973092,1740171042250,-500.0,0.00011123,2]
[353973094,1740171042260,-948.42,0.00011123,2]
[353973096,1740171042269,-500.0,0.00011123,2]
[353973098,1740171042278,-500.0,0.00011123,2]
[353973100,1740171042287,-500.0,0.00011123,2]
[353973102,1740171042297,-548.39,0.00011123,2]
[353973104,1740171042307,-500.0,0.00011123,2]
[353973106,1740171042316,-500.0,0.00011123,2]
[353973108,1740171042326,-500.0,0.00011123,2]
[353973110,1740171042335,-455.88626327,0.00011123,2]
[353973112,1740171042345,-500.0,0.00011123,2]
[353973114,1740171042354,-500.0,0.00011123,2]
[353973116,1740171042363,-500.0,0.00011123,2]
[353973118,1740171042373,-500.0,0.00011123,2]
[353973120,1740171042382,-500.0,0.00011123,2]
[353973122,1740171042391,-500.0,0.00011123,2]
[353973124,1740171042401,-507.11856626,0.00011123,2]
[353973126,1740171042410,-500.0,0.00011123,2]
[353973128,1740171042419,-500.0,0.00011123,2]
[353973130,1740171042429,-500.0,0.00011123,2]
[353973132,1740171042438,-500.0,0.00011123,2]
[353973134,1740171042447,-500.0,0.00011123,2]
[353973136,1740171042457,-500.0,0.00011123,2]
[353973138,1740171042466,-500.0,0.00011123,2]
[353973140,1740171042476,-509.14,0.00011123,2]
[353973142,1740171042486,-500.0,0.00011123,2]
[353973144,1740171042495,-500.0,0.00011123,2]
[353973146,1740171042506,-532.03,0.00011123,2]
[353973148,1740171042515,-512.33047343,0.00011123,2]
[353973150,1740171042525,-500.0,0.00011123,2]
[353973153,1740171042535,-500.0,0.00011123,2]
[353973155,1740171042545,-895.54,0.00011123,2]
[353973157,1740171042554,-500.0,0.00011123,2]
[353973159,1740171042564,-500.0,0.00011123,2]
[353973161,1740171042573,-500.0,0.00011123,2]
[353973163,1740171042583,-723.86,0.00011123,2]
[353973165,1740171042593,-500.0,0.00011123,2]
[353973167,1740171042602,-500.0,0.00011123,2]
[353973169,1740171042612,-569.43,0.00011123,2]
[353973171,1740171042621,-365.54,0.00011123,2]
[353973173,1740171042631,-721.9,0.00011123,2]
[353973175,1740171042640,-604.3,0.00011123,2]
[353973177,1740171042650,-548.65,0.00011123,2]
[353973179,1740171042659,-500.0,0.00011123,2]
[353973181,1740171042668,-796.7,0.00011123,2]
[353973183,1740171042678,-500.0,0.00011123,2]
[353973185,1740171042687,-500.0,0.00011123,2]
[353973187,1740171042696,-570.06,0.00011123,2]
[353973189,1740171042706,-548.12,0.00011123,2]
[353973191,1740171042715,-547.69,0.00011123,2]
[353973194,1740171042726,-500.0,0.00011123,2]
[353973196,1740171042736,-682.11,0.00011123,2]
[353973198,1740171042746,-500.0,0.00011123,2]
[353973200,1740171042755,-530.17,0.00011123,2]
[353973202,1740171042764,-500.0,0.00011123,2]
[353973204,1740171042774,-595.9,0.00011123,2]
[353973207,1740171042783,-500.0,0.00011123,2]
[353973210,1740171042793,-500.0,0.00011123,2]
[353973213,1740171042802,-152.77,0.00011123,2]
[353973216,1740171042811,-500.0,0.00011123,2]
[353973219,1740171042820,-608.63,0.00011123,2]
[353973222,1740171042830,-500.0,0.00011123,2]
[353973225,1740171042839,-500.0,0.00011123,2]
[353973227,1740171042848,-500.0,0.00011123,2]
[353973230,1740171042858,-500.0,0.00011123,2]
[353973233,1740171042868,-528.72,0.00011123,2]
[353973235,1740171042878,-500.0,0.00011123,2]
[353973238,1740171042888,-500.0,0.00011123,2]
[353973241,1740171042898,-500.0,0.00011123,2]
[353973244,1740171042908,-500.0,0.00011123,2]
[353973248,1740171042917,-500.0,0.00011123,2]
[353973252,1740171042927,-500.0,0.00011123,2]
[353973257,1740171042937,-500.0,0.00011123,2]
[353973260,1740171042947,-500.0,0.00011123,2]
[353973264,1740171042958,-596.32,0.00011123,2]
[353973267,1740171042968,-500.0,0.00011123,2]
[353973270,1740171042980,-608.08,0.00011123,2]
[353973274,1740171042990,-500.0,0.00011123,2]
[353973281,1740171043003,-500.0,0.00011123,2]
[353973284,1740171043013,-500.0,0.00011123,2]
[353973290,1740171043023,-500.0,0.00011123,2]
[353973294,1740171043033,-500.0,0.00011123,2]
[353973296,1740171043043,-725.21,0.00011123,2]
[353973298,1740171043053,-500.0,0.00011123,2]
[353973301,1740171043062,-736.61,0.00011123,2]
[353973304,1740171043071,-500.0,0.00011123,2]
[353973307,1740171043081,-500.0,0.00011123,2]
[353973309,1740171043091,-500.0,0.00011123,2]
[353973312,1740171043101,-500.0,0.00011123,2]
[353973315,1740171043110,-500.0,0.00011123,2]
[353973318,1740171043120,-500.0,0.00011123,2]
[353973321,1740171043129,-500.0,0.00011123,2]
[353973324,1740171043138,-500.0,0.00011123,2]
[353973326,1740171043147,-218.74,0.00011123,2]
[353973329,1740171043157,-595.1,0.00011123,2]
[353973331,1740171043167,-500.0,0.00011123,2]
[353973334,1740171043177,-602.4549082,0.00011123,2]
[353973337,1740171043187,-500.0,0.00011123,2]
[353973339,1740171043197,-597.25,0.00011123,2]
[353973341,1740171043208,-500.0,0.00011123,2]
[353973342,1740171043217,-500.0,0.00011123,2]
[353973344,1740171043230,-789.82,0.00011123,2]
[353973346,1740171043239,-500.0,0.00011123,2]
[353973348,1740171043249,-820.97,0.00011123,2]
[353973350,1740171043258,-500.0,0.00011123,2]
[353973351,1740171043268,-500.0,0.00011123,2]
[353973353,1740171043277,-500.0,0.00011123,2]
[353973355,1740171043287,-638.4,0.00011123,2]
[353973357,1740171043297,-500.0,0.00011123,2]
[353973358,1740171043306,-500.0,0.00011123,2]
[353973360,1740171043316,-602.07,0.00011123,2]
[353973362,1740171043326,-534.75,0.00011123,2]
[353973364,1740171043337,-591.74,0.00011123,2]
[353973366,1740171043347,-500.0,0.00011123,2]
[353973367,1740171043356,-594.45,0.00011123,2]
[353973369,1740171043366,-556.78,0.00011123,2]
[353973371,1740171043376,-543.99,0.00011123,2]
[353973373,1740171043386,-500.0,0.00011123,2]
[353973375,1740171043396,-500.0,0.00011123,2]
[353973377,1740171043407,-500.0,0.00011123,2]
[353973379,1740171043417,-500.0,0.00011123,2]
[353973381,1740171043427,-561.34,0.00011123,2]
[353973382,1740171043438,-656.67,0.00011123,2]
[353973384,1740171043448,-500.0,0.00011123,2]
[353973386,1740171043459,-500.0,0.00011123,2]
[353973388,1740171043469,-500.0,0.00011123,2]
[353973390,1740171043483,-510.74,0.00011123,2]
[353973391,1740171043492,-500.0,0.00011123,2]
[353973393,1740171043502,-570.21,0.00011123,2]
[353973395,1740171043512,-500.0,0.00011123,2]
[353973397,1740171043522,-500.0,0.00011123,2]
[353973399,1740171043532,-500.0,0.00011123,2]
[353973401,1740171043543,-737.42,0.00011123,2]
[353973403,1740171043552,-500.0,0.00011123,2]
[353973405,1740171043562,-576.65,0.00011123,2]
[353973406,1740171043571,-500.0,0.00011123,2]
[353973408,1740171043581,-717.99,0.00011123,2]
[353973410,1740171043591,-500.0,0.00011123,2]
[353973412,1740171043600,-758.02,0.00011123,2]
[353973414,1740171043610,-500.0,0.00011123,2]
[353973416,1740171043620,-500.0,0.00011123,2]
[353973417,1740171043629,-500.0,0.00011123,2]
[353973419,1740171043639,-500.0,0.00011123,2]
[353973421,1740171043648,-516.42,0.00011123,2]
[353973423,1740171043657,-500.0,0.00011123,2]
[353973425,1740171043667,-500.0,0.00011123,2]
[353973426,1740171043677,-500.0,0.00011123,2]
[353973428,1740171043686,-628.36,0.00011123,2]
[353973430,1740171043696,-500.0,0.00011123,2]
[353973432,1740171043706,-500.0,0.00011123,2]
[353973434,1740171043716,-500.0,0.00011123,2]
[353973436,1740171043727,-602.18,0.00011123,2]
[353973438,1740171043737,-500.0,0.00011123,2]
[353973440,1740171043747,-500.0,0.00011123,2]
[353973442,1740171043757,-637.41,0.00011123,2]
[353973444,1740171043767,-549.57,0.00011123,2]
[353973446,1740171043777,-594.93,0.00011123,2]
[353973448,1740171043787,-500.0,0.00011123,2]
[353973450,1740171043798,-510.35,0.00011123,2]
[353973452,1740171043807,-500.0,0.00011123,2]
[353973454,1740171043816,-500.0,0.00011123,2]
[353973456,1740171043826,-828.44,0.00011123,2]
[353973458,1740171043835,-500.0,0.00011123,2]
[353973460,1740171043845,-500.0,0.00011123,2]
[353973462,1740171043855,-500.0,0.00011123,2]